Cogmind - Beta 13 @@@ ROGUE MODE // 2024.04.29 @ 16:59:37 Player: opdo Result: Self-destructed Performance ------------- Evolutions (2) 1000 Regions Visited (5) 1000 Robots Destroyed (23) 115 Value Destroyed (536) 536 Prototype IDs (0) 0 Alien Tech Used (0) 0 Bonus (200) 200 TOTAL SCORE: 2851 Bonus ------- Entered Garrisons 200 Cogmind --------- Core Integrity 340/550 Matter 262/300 Energy 240/240 System Corruption 0% Temperature Cool (0) Movement Hovering (240) Ox3 Location -8/Garrison Parts ------- > --- POWER (2) -------- Nuclear Core > --- PROPULSION (4) --- Hover Unit > --- UTILITY (3) ------ Small Storage Unit Signal Interpreter Improved Utility Shielding > --- WEAPON (2) ------- Grenade Launcher Heavy Flail > --- INVENTORY (8) ---- Nuclear Core Sensor Array Heavy Assault Rifle Peak State ------------ > --- POWER ------------ Nuclear Core > --- PROPULSION ------- Surge Thruster Surge Thruster Surge Thruster > --- UTILITY ---------- Small Storage Unit Signal Interpreter Improved Utility Shielding > --- WEAPON ----------- Heavy Flail Heavy Flail > --- INVENTORY -------- Nuclear Core Nuclear Core Compact Wheel Compact Wheel Hover Unit Sensor Array Heavy Assault Rifle Grenade Launcher [Rating: 24] Favorites ----------- Power Ion Engine Engine Ion Engine Power Core Nuclear Core Propulsion Aluminum Leg Leg Aluminum Leg Wheel Compact Wheel Hover Unit Hover Unit Flight Unit Flight Unit Utility Small Storage Unit Device Improved Terrain Scanner Storage Small Storage Unit Processor Signal Interpreter Protection Improved Utility Shielding Weapon Assault Rifle Ballistic Gun Assault Rifle Launcher Grenade Launcher Impact Weapon Heavy Flail Build | -11 -10 -10 -9 -8 -8 ------- Run | Yrd Mat Min Mat Mat Gar Slots Evolved 4 | . . . 2 2 . Power 1 | . . . . 1 . Propulsion 2 | . . . 1 1 . Utility 1 | . . . 1 . . Weapon . | . . . . . . Parts Attached 30 | 7 1 . 16 2 4 Power 7 | 1 . . 4 . 2 Engine 4 | 1 . . 2 . 1 Core 3 | . . . 2 . 1 Reactor . | . . . . . . Propulsion 13 | 2 . . 8 2 1 Treads . | . . . . . . Leg 4 | 2 . . 2 . . Wheel 3 | . . . 1 2 . Hover 1 | . . . . . 1 Flight 5 | . . . 5 . . Utility 4 | 2 . . 2 . . Device 1 | 1 . . . . . Storage 1 | 1 . . . . . Processor 1 | . . . 1 . . Hackware . | . . . . . . Protection 1 | . . . 1 . . Artifact . | . . . . . . Weapon 6 | 2 1 . 2 . 1 Energy Gun . | . . . . . . Energy Cannon . | . . . . . . Ballistic Gun 3 | 2 1 . . . . Ballistic Cannon . | . . . . . . Launcher 1 | . . . . . 1 Special Weapon . | . . . . . . Impact Weapon 2 | . . . 2 . . Slashing Weapon . | . . . . . . Piercing Weapon . | . . . . . . Special Melee Weapon . | . . . . . . Unidentified Prototypes . | . . . . . . Parts Lost 17 | . . . 9 4 4 Power 4 | . . . 2 1 1 Propulsion 9 | . . . 4 3 2 Utility 1 | . . . 1 . . Weapon 3 | . . . 2 . 1 Highest Loss Streak 4 | . . . 3 4 4 To Critical Strikes 1 | . . . 1 . . Average Slot Usage (%) 91 | . 100 100 91 72 83 Engine 7 | . 14 14 6 . 4 Core 1 | . . . . 6 9 Leg 19 | . 28 28 22 . . Wheel 3 | . . . 1 . 16 Hover 1 | . . . . . 9 Flight 3 | . . . 4 20 . Device 5 | . 14 14 4 . . Storage 11 | . 14 14 11 9 9 Processor 5 | . . . 6 9 9 Protection 7 | . . . 11 9 9 Ballistic Gun 11 | . 28 28 9 . . Impact Weapon 10 | . . . 12 18 17 Naked Turns . | . . . . . . Heaviest Build 23 | 15 15 15 20 20 23 Greatest Support 32 | 20 20 20 30 32 32 Greatest Overweight (x) 4 | . . . 2 4 . Average Overweight (x) . | . . . . 1 . Largest Inventory Capacity 8 | 8 8 8 8 8 8 Average Capacity 7 | 6 8 8 8 8 8 Most Carried 8 | 5 8 8 8 8 5 Average Carried 6 | 3 6 8 7 7 3 Final Capacity 8 | 8 8 8 8 8 8 Final Carried 8 | 5 8 8 8 6 3 Class Distribution -------------------- 100% | Mutant Dominant Class ---------------- Mutant | -10/Materials Mutant | -10/Mines Mutant | -9/Materials Mutant | -8/Materials Mutant | -8/Garrison Resources | -11 -10 -10 -9 -8 -8 ----------- Run | Yrd Mat Min Mat Mat Gar Matter Collected 646 | 120 44 . 303 92 87 Remotely . | . . . . . . Salvage Created 617 | 34 110 . 338 . 135 Parts 42 | 3 8 . 21 . 10 Haulers Intercepted . | . . . . . . Recyclers Shooed . | . . . . . . Parts Field Recycled . | . . . . . . Retrieved Matter . | . . . . . . Parts Self-Destructed . | . . . . . . Prevented . | . . . . . . Kills | -11 -10 -10 -9 -8 -8 ------- Run | Yrd Mat Min Mat Mat Gar Combat Hostiles Destroyed 19 | . 4 . 8 . 7 Melee 4 | . . . 2 . 2 Guns 7 | . 4 . 3 . . AOE 4 | . . . . . 4 Classes Destroyed 5 | 1 3 . 1 . . Tunneler 2 | 2 . . . . . Watcher 2 | . 1 . 1 . . Swarmer 10 | . 3 . 2 . 5 Grunt 4 | . 1 . 2 . 1 Sentry 5 | . . . 4 . 1 Best Kill Streak 5 | 2 3 . 3 . 5 Combat Bots Only 5 | . 3 . 3 . 5 Max Kills in Single Turn 2 | 1 1 . 1 . 2 Gunslinging . | . . . . . . Exploded 2 | . . . . . 2 Melee 1 | . . . 1 . 1 Uniques/NPCs Destroyed . | . . . . . . Combat | -11 -10 -10 -9 -8 -8 -------- Run | Yrd Mat Min Mat Mat Gar Hostile Shots Fired 199 | . 12 . 113 32 42 Missed 48 | . 6 . 29 4 9 Damage Taken 2077 | . 56 . 1167 448 406 Core 503 | . . . 293 109 101 Absorbed by Shields . | . . . . . . Redirected to Shielding 94 | . . . 54 23 17 Core Remaining (%) 75 | 100 . 100 26 . . Volleys Fired 44 | 3 9 . 30 . 2 Largest 2 | 2 2 . 2 . 1 Hottest 40 | 40 40 . 40 . 30 Shots Fired 85 | 6 18 . 59 . 2 Gun 83 | 6 18 . 59 . . Cannon . | . . . . . . Launcher 2 | . . . . . 2 Special . | . . . . . . Kinetic 83 | 6 18 . 59 . . Thermal . | . . . . . . Explosive 2 | . . . . . 2 Electromagnetic . | . . . . . . Robot Hit Streak 11 | 3 9 . 11 . 3 Robot Miss Streak 3 | 1 1 . 3 . . Penetration Max . | . . . . . . Secondary Targets . | . . . . . . Shots Hit Robots 75 | 4 12 . 50 . 9 Core Hits 27 | 2 6 . 12 . 7 Critical Kills . | . . . . . . Critical Parts Destroyed 6 | . . . 5 . 1 Critical Strikes 8 | . . . 7 . 1 Destroy 1 | . . . 1 . . Smash 7 | . . . 6 . 1 Melee Attacks 28 | . . . 18 . 10 Impact 28 | . . . 18 . 10 Slashing . | . . . . . . Piercing . | . . . . . . Sneak Attacks . | . . . . . . Combat Hostiles . | . . . . . . Follow-up Attacks 5 | . . . 4 . 1 Damage Inflicted 1816 | 52 162 . 838 . 764 Guns 727 | 52 162 . 513 . . Cannons . | . . . . . . Explosions 398 | . . . . . 398 Melee 691 | . . . 325 . 366 Ramming . | . . . . . . Kinetic 727 | 52 162 . 513 . . Thermal . | . . . . . . Explosive 398 | . . . . . 398 Electromagnetic . | . . . . . . Impact 691 | . . . 325 . 366 Slashing . | . . . . . . Piercing . | . . . . . . Highest Corruption . | . . . . . . Average Corruption . | . . . . . . Corruption Purged . | . . . . . . Corruption Blocked . | . . . . . . Overload Shots . | . . . . . . Overflow Damage 273 | . . . 62 . 211 Projectiles . | . . . . . . Explosions 58 | . . . . . 58 Melee 215 | . . . 62 . 153 Knockbacks 2 | . . . . . 2 Impact 2 | . . . . . 2 Kinetic . | . . . . . . Secondary . | . . . . . . Self-Inflicted Damage 62 | . . . . . 62 Shots 2 | . . . . . 2 Rammed . | . . . . . . Targets Rammed . | . . . . . . Kicked . | . . . . . . Crushed . | . . . . . . Highest Temperature 17 | . . . 17 16 1 Average Temperature 7 | . . . 8 8 1 Received Heat Transfer 771 | . 18 . 420 252 81 Siege Activations . | . . . . . . Robots Corrupted . | . . . . . . Combat Hostiles . | . . . . . . Parts Fried 6 | . . . 5 . 1 Impact Corruptions 11 | . . . 6 . 5 Robots Melted . | . . . . . . Combat Hostiles . | . . . . . . Parts Melted . | . . . . . . Heat Transferred . | . . . . . . Parts Sabotaged . | . . . . . . Parts Stolen . | . . . . . . Parts Stripped . | . . . . . . Power Chain Reactions . | . . . . . . Alert | -11 -10 -10 -9 -8 -8 ------- Run | Yrd Mat Min Mat Mat Gar Peak Influence 226 | 10 118 45 226 20 150 Initial 45 | . 6 45 17 1 . Average 79 | 1 58 45 121 6 28 Maximum Alert Level 1 | . . . 1 . . Low Security (%) 90 | 100 100 100 82 100 100 Level 1 9 | . . . 17 . . Level 2 . | . . . . . . Level 3 . | . . . . . . Level 4 . | . . . . . . Level 5 . | . . . . . . High Security . | . . . . . . Max Security . | . . . . . . Squads Dispatched 2 | . 1 . . 1 . Investigation 1 | . 1 . . . . Extermination . | . . . . . . Reinforcement 1 | . . . . 1 . Assault . | . . . . . . Garrison . | . . . . . . Intercept . | . . . . . . Searches Triggered . | . . . . . . Construction Impeded . | . . . . . . Haulers Reinforced . | . . . . . . Active Scanning Responses . | . . . . . . Cargo Convoy Interrupts . | . . . . . . Stealth | -11 -10 -10 -9 -8 -8 --------- Run | Yrd Mat Min Mat Mat Gar Distress Signals 5 | . 1 . 3 1 . Communications Jammed . | . . . . . . Distress Signals . | . . . . . . Times Spotted 46 | . 5 . 19 7 15 Peak Tracking Total 10 | . 3 . 6 7 10 Tactical Retreats 2 | . . . 2 . . Traps | -11 -10 -10 -9 -8 -8 ------- Run | Yrd Mat Min Mat Mat Gar Traps Triggered 3 | . 2 . . . 1 Indirectly . | . . . . . . Trap Hack Attempts . | . . . . . . Triggered . | . . . . . . Disarmed . | . . . . . . Reprogrammed . | . . . . . . Reused . | . . . . . . Traps Extracted . | . . . . . . Installed . | . . . . . . Triggered . | . . . . . . Machines | -11 -10 -10 -9 -8 -8 ---------- Run | Yrd Mat Min Mat Mat Gar Machines Disabled . | . . . . . . Max in Single Turn . | . . . . . . Machines Repaired . | . . . . . . Machines Dismantled . | . . . . . . Machines Sabotaged . | . . . . . . Overloaded Fab Kills . | . . . . . . Hacking | -11 -10 -10 -9 -8 -8 --------- Run | Yrd Mat Min Mat Mat Gar Machines Accessed 3 | . 1 . 1 1 . Terminals 1 | . 1 . . . . Fabricators . | . . . . . . Repair Stations . | . . . . . . Recycling Units 1 | . . . 1 . . Scanalyzers . | . . . . . . Garrison Access 1 | . . . . 1 . Total Hacks 5 | . 3 . 1 1 . Successful 3 | . 1 . 1 1 . Failed 2 | . 2 . . . . Catastrophic . | . . . . . . Database Lockouts . | . . . . . . Manual 3 | . 2 . 1 . . Terminals 3 | . 3 . . . . Fabricators . | . . . . . . Repair Stations . | . . . . . . Recycling Units 1 | . . . 1 . . Scanalyzers . | . . . . . . Garrison Access 1 | . . . . 1 . Terminal Hacks . | . . . . . . Fabricator Hacks . | . . . . . . Repair Station Hacks . | . . . . . . Recycling Unit Hacks . | . . . . . . Scanalyzer . | . . . . . . Garrison Access Hacks 1 | . . . . 1 . Unlock Access 1 | . . . . 1 . Unauthorized Hacks 2 | . 1 . 1 . . Terminals 1 | . 1 . . . . Botnet 1 | . 1 . . . . Fabricators . | . . . . . . Repair Stations . | . . . . . . Recycling Units 1 | . . . 1 . . Monitor 1 | . . . 1 . . Scanalyzers . | . . . . . . Garrison Access . | . . . . . . Data Cores Recovered . | . . . . . . Used . | . . . . . . Hacking Detections 1 | . 1 . . . . Full Trace Events . | . . . . . . Feedback Events . | . . . . . . Feedback Blocked . | . . . . . . Robot Schematics Acquired . | . . . . . . Robots Built . | . . . . . . Authchips . | . . . . . . Time . | . . . . . . Total Robot Build Rating . | . . . . . . Part Schematics Acquired . | . . . . . . Parts Built . | . . . . . . Authchips . | . . . . . . Time . | . . . . . . Total Part Build Rating . | . . . . . . Parts Repaired . | . . . . . . Time . | . . . . . . Parts Recycled . | . . . . . . Recycled Matter . | . . . . . . Retrieved Matter . | . . . . . . Retrieved Components . | . . . . . . Parts Scanalyzed . | . . . . . . Part Schematics Acquired . | . . . . . . Parts Damaged . | . . . . . . Bothacking | -11 -10 -10 -9 -8 -8 ------------ Run | Yrd Mat Min Mat Mat Gar Used RIF Installer . | . . . . . . Robots Hacked . | . . . . . . Non-combat . | . . . . . . Combat . | . . . . . . Robot Hacks Applied . | . . . . . . Relay Couplers Released . | . . . . . . Fabnet Peak Effective % . | . . . . . . Robots Rewired . | . . . . . . Allies Hacked . | . . . . . . Hacks Repelled . | . . . . . . Allies | -11 -10 -10 -9 -8 -8 -------- Run | Yrd Mat Min Mat Mat Gar Total Allies . | . . . . . . Largest Group . | . . . . . . Highest-Rated Group . | . . . . . . Highest-Rated Ally . | . . . . . . Total Orders . | . . . . . . Ally Attacks . | . . . . . . Total Damage . | . . . . . . Kills . | . . . . . . Allies Corrupted . | . . . . . . Allies Melted . | . . . . . . Intel | -11 -10 -10 -9 -8 -8 ------- Run | Yrd Mat Min Mat Mat Gar Robot Analysis Total . | . . . . . . Derelict Logs Recovered 1 | . . 1 . . . Drone Launches . | . . . . . . Drone Recoveries . | . . . . . . Exploration | -11 -10 -10 -9 -8 -8 ------------- Run | Yrd Mat Min Mat Mat Gar Turns Passed 902 | 67 115 78 471 44 127 Spaces Moved 505 | 39 70 66 206 37 87 Core 6 | 5 . . . 1 . Treads . | . . . . . . Legs 370 | 34 70 66 200 . . Wheels 90 | . . . . 3 87 Hover . | . . . . . . Flight 39 | . . . 6 33 . Fastest Speed 50 | 50 120 120 83 100 100 Average Speed 124 | 111 120 120 142 115 100 Slowest Speed 250 | 120 120 120 190 250 100 Overloaded Moves . | . . . . . . Propulsion Burnouts . | . . . . . . Robots Hopped . | . . . . . . Cave-ins Triggered . | . . . . . . Exploration Rate (%) 17 | 3 27 24 25 6 21 Regions Visited 5 Branch Regions 1 Pre-discovered Areas 1 | . . 1 . . . Known Exits Taken 2 | . . . 1 1 . Unknown Exits Taken 3 | 1 1 1 . . . Scrap Searched . | . . . . . . Spaces Dug . | . . . . . . Terrain Destroyed 5 | . . . . . 5 Melee . | . . . . . . Projectile . | . . . . . . AOE 5 | . . . . . 5 Terrain Rammed . | . . . . . . Walls Destroyed . | . . . . . . Machines Disabled . | . . . . . . Actions | -11 -10 -10 -9 -8 -8 --------- Run | Yrd Mat Min Mat Mat Gar Total 652 | 53 82 65 304 38 110 Wait 15 | . . . 15 . . Move 500 | 38 69 65 205 36 87 Hop . | . . . . . . Pick Up 21 | 5 3 . 13 . . Fast Attach 15 | 7 1 . 6 . 1 Attach 12 | . . . 7 2 3 Detach 1 | . . . 1 . . Swap 3 | . . . 3 . . Drop 10 | . . . 10 . . Fire 44 | 3 9 . 30 . 2 Melee 23 | . . . 14 . 9 Ram . | . . . . . . Kick . | . . . . . . Crush . | . . . . . . Escape Stasis 8 | . . . . . 8 Rewire . | . . . . . . Trap . | . . . . . . Miscellaneous . | . . . . . . Route ------- -11/Scrapyard -10/Materials -10/Mines -9/Materials -8/Materials -8/Garrison History --------- Turn | Location | Event 6 | -11/Scrapyard | Discovered new exit (range 16) 68 | -11/Scrapyard | Entered Materials 178 | -10/Materials | Discovered new exit (range 5) 183 | -10/Materials | Entered Mines 225 | -10/Mines | Learned location of Storage (-8) 255 | -10/Mines | Discovered new exit (range 3) 261 | -10/Mines | Entered Materials 261 | -9/Materials | Evolved 2 slots: Propulsion x1, Utility x1 322 | -9/Materials | Build established: Mutant 499 | -9/Materials | Lost 3 parts (1u2w) 609 | -9/Materials | Lost 3 parts (1p2n) 691 | -9/Materials | Discovered new exit (range 13) 718 | -9/Materials | Core integrity fell below 50% 731 | -9/Materials | Identified exit to Materials 732 | -9/Materials | Entered another Materials area 732 | -8/Materials | Evolved 2 slots: Power x1, Propulsion x1 742 | -8/Materials | Identified exit to Garrison 776 | -8/Materials | Entered Garrison 800 | -8/Garrison | Lost 4 parts (1p3n) 814 | -8/Garrison | Triggered checkpoint 890 | -8/Garrison | Triggered checkpoint 903 | -8/Garrison | Self-destructed Last Messages --------------- 00890_ Hvy. Flail follow-up attack on S-10 Pest. 00891_ C-30 ARC bursts open, deploying its payload. 00891_ G-47 Trooper unfolds itself. 00894_ Com. Wheel destroyed. 00895_ Hvy. Flail destroyed. 00895_ Destroyed Adv. Heat Sink. 00895_ G-50 Soldier system corrupted by crushing effect. 00895_ G-50 Soldier knocked back. 00896_ G-50 Soldier system terminally corrupted. 00898_ Com. Wheel destroyed. 00899_ Lgt. Ion Engine destroyed. 00899_ Destroyed Lgt. Ion Engine. 00899_ Destroyed Flight Unit. 00899_ S-10 Pest destroyed. 00900_ Y-45 Defender destroyed. 00901_ Acquired 44 matter. 00901_ S-10 Pest destroyed. 00901_ Y-45 Defender destroyed. Map ----- +----------------------------------------------------+ | ?????????????????????????????????????????????????? | | ?????????????????????????????????????????????????? | | ?????????????????????????????????????????????????? | | ?????????????????????????????????????????????????? | | ?????????????????????????????????????????????????? | | ?????????????????????????????????????????????????? | | ?????????????????????????????????????????????????? | | ?????????????????????????????????????????????????? | | ?????????????????????????????????????????????????? | | ???????????????????????###???????????????????????? | | ??????????????????????# ???????????????????????? | | ?????????????????????? ??????????????????????? | | ?????????????????????? ??????????????????????? | | ??????????????????????# #?????#? ????????????? | | ??????????????????????# ##??? ## ????????????? | | ??????????????????????" ??? "???????????? | | ??????????????????????" ?? ?????????????? | | ??????????????????????" ?? ??????????????? | | ??????????????????????" ?? ???????????????? | | ????????????????????#?# #? #????????????????? | | ????????????????????# # ## #????????????????? | | ????????????????????# #s* ?????????????????? | | ????????????????????#[%s=[! ???????????????????? | | ????????????????????# g!%%%?????????????????????? | | ????????????????????#s g[=##?????????????????????? | | ##??????????????????# !@=#?????????????????????? | | #??????????????????# #?????????????????????? | | #??????????????????# # ##?????????????????????? | | #????????????????????# #??????????????????????? | | ##????????????????????# #??????????????????????? | | ??????????????????????# #??????????????????????? | | ####################### #??????????????????????? | | #??????????????????????? | | #??????????????????????? | | ## #??????????????????????? | | ?# ######### ###########??????????????????????? | | ?# #???????# #????????????????????????????????? | | ?# #???????# #????????????????????????????????? | | ?# #???????# #????????????????????????????????? | | ?# #???????" #????????????????????????????????? | | ?# #???????" #????????????????????????????????? | | ?# #???????" #????????????????????????????????? | | ?# #???????# #????????????????????????????????? | | ?# #???????# ????????????????????????????????? | | ?# #???????# ????????????????????????????????? | | ?# #???????####????????????????????????????????? | | ?# #???????????????????????????????????????????? | | ?# #???????????????????????????????????????????? | | ?# #???????????????????????????????????????????? | | ?# #???????????????????????????????????????????? | +----------------------------------------------------+ Best States ------------- Heat Dissipation 31 Energy Generation 19 Energy Capacity 265 Matter Stores 235 Matter Capacity 300 Sight Range 16 Terrain Scan Range 16 Terrain Scan Density 10 Utility Shielding 66 Evasion (%) 55 Item Schematics ----------------- None Robot Schematics ------------------ None Fabricated ------------ Nothing Alien Tech Used ----------------- None Achievements -------------- None Challenges ------------ None Game ------ Seed CoordinationArmoredDiverter Manual? 0 Play Time 00:07:32 Cumulative 47.2 hours Start 2024.04.29 @ 16:53:04 End 2024.04.29 @ 16:59:37 Sessions 1 Manual Loads 0 Difficulty Rogue Special Mode None Game No. 129 Rogue 127 Adventurer 2 Explorer 0 Win Type - Total 0 Types 0/0/0/0/0/0/0/0/0 Lore% 35 Gallery% 49 Achievement% 35 Wizard Run 0 Options --------- Layout 2 ASCII 0 Keyboard 0 Movement Arrows Keybinds 0 Fullscreen 2 Font 24/Smallcaps Map View 50x44 Zoom Use 0% Tactical HUD 1 Map Filters NONE Filters NONE Steam 1 RUN: 12d21acf-213e-4ce6-9545-93a2b3ac762a